[Event "Late-Titled-Tuesday-Blitz-August-29-2023"]
[Site "Chess.com"]
[Date "2023.08.29"]
[Round "1"]
[White "Jospem"]
[Black "Gameking51"]
[Result "1-0"]
[WhiteElo "3056"]
[BlackElo "2515"]
[TimeControl "180+1"]
[EndTime "14:04:30 PDT"]
[Termination "Jospem won by resignation"]

1. e4 {[%clk 0:03:00.9]} 1... c5 {[%clk 0:02:59.2]} 2. Nf3 {[%clk 0:03:01.2]}
2... d6 {[%clk 0:02:58.3]} 3. c3 {[%clk 0:03:00.3]} 3... Nf6 {[%clk 0:02:51.8]}
4. h3 {[%clk 0:02:57.7]} 4... Nbd7 {[%clk 0:02:47.4]} 5. Bd3 {[%clk 0:02:53.7]}
5... b6 {[%clk 0:02:45.9]} 6. O-O {[%clk 0:02:50.9]} 6... Bb7 {[%clk 0:02:45.2]}
7. Qe2 {[%clk 0:02:51.5]} 7... Qc7 {[%clk 0:02:38.3]} 8. Bc2 {[%clk 0:02:51.3]}
8... Rc8 {[%clk 0:02:35.9]} 9. d3 {[%clk 0:02:48.3]} 9... g6 {[%clk 0:02:36]}
10. Na3 {[%clk 0:02:47.1]} 10... a6 {[%clk 0:02:31.6]} 11. d4 {[%clk 0:02:41.5]}
11... Bg7 {[%clk 0:02:23.5]} 12. Re1 {[%clk 0:02:36.8]} 12... O-O {[%clk
0:02:08.8]} 13. Bg5 {[%clk 0:02:34]} 13... b5 {[%clk 0:02:03]} 14. Bd3 {[%clk
0:02:24.8]} 14... h6 {[%clk 0:01:45.6]} 15. Bd2 {[%clk 0:02:14.7]} 15... e5
{[%clk 0:01:39.2]} 16. d5 {[%clk 0:02:05.2]} 16... c4 {[%clk 0:01:38.5]} 17. Bc2
{[%clk 0:02:05.6]} 17... Nh7 {[%clk 0:01:36.8]} 18. b3 {[%clk 0:01:57.9]} 18...
cxb3 {[%clk 0:01:30.9]} 19. axb3 {[%clk 0:01:58.8]} 19... Kh8 {[%clk 0:01:04.7]}
20. c4 {[%clk 0:01:56.1]} 20... bxc4 {[%clk 0:01:00.5]} 21. Nxc4 {[%clk
0:01:55.9]} 21... Rb8 {[%clk 0:00:41.9]} 22. Ba5 {[%clk 0:01:53.9]} 22... Qc5
{[%clk 0:00:38.1]} 23. b4 {[%clk 0:01:53.5]} 23... Qb5 {[%clk 0:00:37.8]} 24.
Ba4 {[%clk 0:01:53.2]} 1-0

[Event "Late-Titled-Tuesday-Blitz-August-29-2023"]
[Site "Chess.com"]
[Date "2023.08.29"]
[Round "1"]
[White "vidavi"]
[Black "dropstoneDP"]
[Result "0-1"]
[WhiteElo "2501"]
[BlackElo "2972"]
[TimeControl "180+1"]
[EndTime "14:04:32 PDT"]
[Termination "dropstoneDP won by resignation"]

1. d4 {[%clk 0:03:00.9]} 1... d5 {[%clk 0:02:59.7]} 2. c4 {[%clk 0:03:00.3]}
2... e6 {[%clk 0:03:00.2]} 3. Nf3 {[%clk 0:03:00.3]} 3... Nf6 {[%clk 0:03:00.6]}
4. g3 {[%clk 0:03:00.2]} 4... Be7 {[%clk 0:03:00.6]} 5. Bg2 {[%clk 0:03:00.5]}
5... O-O {[%clk 0:03:01.2]} 6. O-O {[%clk 0:03:01.1]} 6... dxc4 {[%clk
0:03:01.4]} 7. Qc2 {[%clk 0:03:01]} 7... a6 {[%clk 0:03:01.9]} 8. Qxc4 {[%clk
0:03:01]} 8... b5 {[%clk 0:03:01.8]} 9. Qc2 {[%clk 0:03:01.5]} 9... Bb7 {[%clk
0:03:01.1]} 10. Bd2 {[%clk 0:03:01.4]} 10... Be4 {[%clk 0:02:44.1]} 11. Qc1
{[%clk 0:03:01]} 11... Nc6 {[%clk 0:02:44.7]} 12. e3 {[%clk 0:02:29.5]} 12... b4
{[%clk 0:02:44.3]} 13. Rd1 {[%clk 0:02:09.7]} 13... Qd5 {[%clk 0:02:43]} 14. Ne1
{[%clk 0:02:05.9]} 14... Bxg2 {[%clk 0:02:42.1]} 15. Nxg2 {[%clk 0:02:05.9]}
15... e5 {[%clk 0:02:42.7]} 16. Be1 {[%clk 0:01:49.8]} 16... exd4 {[%clk
0:02:42.4]} 17. Nf4 {[%clk 0:01:50.2]} 17... Qd7 {[%clk 0:02:41.5]} 18. Nd2
{[%clk 0:01:25]} 18... dxe3 {[%clk 0:02:38.2]} 19. Ne4 {[%clk 0:01:06.7]} 19...
Qe8 {[%clk 0:02:38.1]} 20. Qxe3 {[%clk 0:00:54]} 20... Nxe4 {[%clk 0:02:34.7]}
21. Qxe4 {[%clk 0:00:54]} 21... Bf6 {[%clk 0:02:34.5]} 22. Qc2 {[%clk 0:00:39]}
22... Nd4 {[%clk 0:02:32.6]} 23. Qd3 {[%clk 0:00:26.8]} 23... Qc6 {[%clk
0:02:27.5]} 24. Bxb4 {[%clk 0:00:19.6]} 24... Rfd8 {[%clk 0:02:28.1]} 25. Kf1
{[%clk 0:00:10]} 0-1

[Event "Late-Titled-Tuesday-Blitz-August-29-2023"]
[Site "Chess.com"]
[Date "2023.08.29"]
[Round "1"]
[White "mishanick"]
[Black "NMJeevanK"]
[Result "1-0"]
[WhiteElo "3138"]
[BlackElo "2520"]
[TimeControl "180+1"]
[EndTime "14:04:35 PDT"]
[Termination "mishanick won by resignation"]

1. d4 {[%clk 0:03:00.9]} 1... d6 {[%clk 0:02:59.8]} 2. e4 {[%clk 0:03:00.4]}
2... Nf6 {[%clk 0:02:59.3]} 3. Nc3 {[%clk 0:03:00.3]} 3... e5 {[%clk 0:02:59.9]}
4. Nf3 {[%clk 0:02:59.8]} 4... Nbd7 {[%clk 0:02:58.9]} 5. Bc4 {[%clk 0:02:59.7]}
5... Be7 {[%clk 0:02:59.3]} 6. O-O {[%clk 0:03:00]} 6... O-O {[%clk 0:02:59.9]}
7. a4 {[%clk 0:03:00.5]} 7... a6 {[%clk 0:02:59.7]} 8. Re1 {[%clk 0:02:59.6]}
8... b6 {[%clk 0:02:59.8]} 9. h3 {[%clk 0:02:54.5]} 9... Bb7 {[%clk 0:02:57.6]}
10. Ba2 {[%clk 0:02:55]} 10... c6 {[%clk 0:02:55.5]} 11. Nh4 {[%clk 0:02:53.9]}
11... g6 {[%clk 0:02:43.4]} 12. Bh6 {[%clk 0:02:52.4]} 12... Re8 {[%clk
0:02:43.5]} 13. Nf3 {[%clk 0:02:52.9]} 13... Bf8 {[%clk 0:02:24]} 14. Bxf8
{[%clk 0:02:48.4]} 14... Rxf8 {[%clk 0:02:19.8]} 15. Qd2 {[%clk 0:02:41.1]}
15... Qe7 {[%clk 0:02:04]} 16. Rad1 {[%clk 0:02:39.7]} 16... Rad8 {[%clk
0:02:01.9]} 17. Qh6 {[%clk 0:02:34.3]} 17... exd4 {[%clk 0:01:49.4]} 18. Nxd4
{[%clk 0:02:17.9]} 18... Nc5 {[%clk 0:01:45.7]} 19. Nf5 {[%clk 0:02:13.8]} 19...
gxf5 {[%clk 0:01:34.7]} 20. exf5 {[%clk 0:02:14.7]} 20... Nce4 {[%clk
0:01:29.5]} 21. Rd3 {[%clk 0:01:48.9]} 21... Kh8 {[%clk 0:01:23.3]} 22. Nxe4
{[%clk 0:01:48.3]} 22... Nxe4 {[%clk 0:01:20.8]} 23. Rxe4 {[%clk 0:01:48.3]}
23... Qd7 {[%clk 0:00:43.2]} 24. Qf6+ {[%clk 0:01:47.4]} 1-0

[Event "Late-Titled-Tuesday-Blitz-August-29-2023"]
[Site "Chess.com"]
[Date "2023.08.29"]
[Round "1"]
[White "MelihKaanCan"]
[Black "AradNazari"]
[Result "1-0"]
[WhiteElo "2464"]
[BlackElo "2726"]
[TimeControl "180+1"]
[EndTime "14:04:35 PDT"]
[Termination "MelihKaanCan won by checkmate"]

1. e4 {[%clk 0:03:00.9]} 1... e6 {[%clk 0:01:29.2]} 2. Nf3 {[%clk 0:02:34.3]}
2... d5 {[%clk 0:01:23.2]} 3. exd5 {[%clk 0:02:26.6]} 3... exd5 {[%clk
0:01:21.7]} 4. Be2 {[%clk 0:02:22.3]} 4... Bd6 {[%clk 0:01:21.3]} 5. O-O {[%clk
0:02:21.7]} 5... Ne7 {[%clk 0:01:21.9]} 6. b3 {[%clk 0:02:21.6]} 6... O-O {[%clk
0:01:21.7]} 7. Bb2 {[%clk 0:02:21.8]} 7... c5 {[%clk 0:01:15.9]} 8. d4 {[%clk
0:02:20.4]} 8... b6 {[%clk 0:01:11.7]} 9. Re1 {[%clk 0:02:10.5]} 9... Bb7 {[%clk
0:01:10.9]} 10. Nc3 {[%clk 0:02:08.6]} 10... a6 {[%clk 0:01:09.8]} 11. Bf1
{[%clk 0:02:08]} 11... Nbc6 {[%clk 0:01:05.7]} 12. Ne2 {[%clk 0:02:04.5]} 12...
Bc7 {[%clk 0:01:01.2]} 13. Ng3 {[%clk 0:02:03.3]} 13... Qd7 {[%clk 0:00:57.3]}
14. Bd3 {[%clk 0:01:50.4]} 14... Nb4 {[%clk 0:00:49.2]} 15. Bxh7+ {[%clk
0:01:46.2]} 15... Kxh7 {[%clk 0:00:50.1]} 16. Ng5+ {[%clk 0:01:46.5]} 16... Kg6
{[%clk 0:00:30.1]} 17. Qh5+ {[%clk 0:01:47.4]} 17... Kf6 {[%clk 0:00:30.6]} 18.
Nh7# {[%clk 0:01:44]} 1-0

[Event "Late-Titled-Tuesday-Blitz-August-29-2023"]
[Site "Chess.com"]
[Date "2023.08.29"]
[Round "1"]
[White "DanielNaroditsky"]
[Black "Real_taiatai"]
[Result "1-0"]
[WhiteElo "3114"]
[BlackElo "2518"]
[TimeControl "180+1"]
[EndTime "14:04:38 PDT"]
[Termination "DanielNaroditsky won by resignation"]

1. e4 {[%clk 0:03:00.9]} 1... e5 {[%clk 0:02:40]} 2. Nf3 {[%clk 0:03:00.8]} 2...
Nc6 {[%clk 0:02:39.2]} 3. Nc3 {[%clk 0:03:01.4]} 3... Nf6 {[%clk 0:02:35.1]} 4.
d4 {[%clk 0:03:01.7]} 4... exd4 {[%clk 0:02:29.8]} 5. Nd5 {[%clk 0:03:01.7]}
5... Be7 {[%clk 0:02:12.8]} 6. Bd3 {[%clk 0:03:00.4]} 6... d6 {[%clk 0:02:11.9]}
7. h3 {[%clk 0:02:59.8]} 7... O-O {[%clk 0:02:11]} 8. O-O {[%clk 0:03:00]} 8...
Re8 {[%clk 0:02:11]} 9. Nxe7+ {[%clk 0:02:55.2]} 9... Qxe7 {[%clk 0:02:08.7]}
10. Re1 {[%clk 0:02:55.4]} 10... h6 {[%clk 0:02:08.5]} 11. b3 {[%clk 0:02:55.1]}
11... Nd7 {[%clk 0:02:06.7]} 12. Bb2 {[%clk 0:02:51.6]} 12... Nc5 {[%clk
0:02:06.3]} 13. Nxd4 {[%clk 0:02:50.9]} 13... Nxd4 {[%clk 0:02:02.5]} 14. Bxd4
{[%clk 0:02:51.8]} 14... Nxd3 {[%clk 0:02:02.9]} 15. cxd3 {[%clk 0:02:52.7]}
15... Qg5 {[%clk 0:01:54.9]} 16. Re3 {[%clk 0:02:50.4]} 16... g6 {[%clk
0:01:48.1]} 17. Rg3 {[%clk 0:02:47.4]} 17... Qh4 {[%clk 0:01:40.6]} 18. Qf3
{[%clk 0:02:44.8]} 18... Qe7 {[%clk 0:01:24]} 19. Bf6 {[%clk 0:02:36.4]} 19...
Qe6 {[%clk 0:01:21.8]} 20. Qf4 {[%clk 0:02:36.7]} 20... Kh7 {[%clk 0:01:21.2]}
21. Rg4 {[%clk 0:02:37.5]} 21... h5 {[%clk 0:01:12.7]} 22. Rg5 {[%clk
0:02:35.3]} 22... a5 {[%clk 0:00:58.9]} 23. Rxh5+ {[%clk 0:02:27.4]} 23... gxh5
{[%clk 0:00:56.3]} 24. Qg5 {[%clk 0:02:28.1]} 24... Qxf6 {[%clk 0:00:53.6]} 25.
Qxf6 {[%clk 0:02:29]} 25... Be6 {[%clk 0:00:52.2]} 26. f4 {[%clk 0:02:29.2]}
26... Rg8 {[%clk 0:00:32.9]} 27. f5 {[%clk 0:02:28.6]} 27... Bd7 {[%clk
0:00:33]} 28. Qxf7+ {[%clk 0:02:28.6]} 28... Rg7 {[%clk 0:00:33.5]} 29. Qxh5+
{[%clk 0:02:29.4]} 29... Kg8 {[%clk 0:00:34]} 30. f6 {[%clk 0:02:30.2]} 30...
Rf7 {[%clk 0:00:34.2]} 31. Qg6+ {[%clk 0:02:29.8]} 31... Kf8 {[%clk 0:00:34.6]}
32. Rf1 {[%clk 0:02:30.1]} 32... Re8 {[%clk 0:00:32.6]} 33. Rf4 {[%clk
0:02:30.3]} 33... Re6 {[%clk 0:00:31.3]} 34. Qh6+ {[%clk 0:02:30.8]} 34... Ke8
{[%clk 0:00:31.3]} 35. Qh8+ {[%clk 0:02:29.9]} 35... Rf8 {[%clk 0:00:30.2]} 36.
f7+ {[%clk 0:02:30.8]} 36... Ke7 {[%clk 0:00:30.1]} 37. Qh4+ {[%clk 0:02:31.7]}
1-0

[Event "Late-Titled-Tuesday-Blitz-August-29-2023"]
[Site "Chess.com"]
[Date "2023.08.29"]
[Round "1"]
[White "tarno17"]
[Black "djano"]
[Result "0-1"]
[WhiteElo "2172"]
[BlackElo "2551"]
[TimeControl "180+1"]
[EndTime "14:04:41 PDT"]
[Termination "djano won on time"]

1. e4 {[%clk 0:03:00]} 1... g6 {[%clk 0:02:59.1]} 2. d4 {[%clk 0:02:59.8]} 2...
Bg7 {[%clk 0:02:59.1]} 3. Nc3 {[%clk 0:02:59.9]} 3... a6 {[%clk 0:02:58.9]} 4.
Be3 {[%clk 0:03:00.1]} 4... b5 {[%clk 0:02:59.1]} 5. Qd2 {[%clk 0:02:58.3]} 5...
Bb7 {[%clk 0:02:58.5]} 6. a3 {[%clk 0:02:56.8]} 6... d6 {[%clk 0:02:57.7]} 7. f4
{[%clk 0:02:52.7]} 7... Nd7 {[%clk 0:02:56.6]} 8. Nf3 {[%clk 0:02:53]} 8... c5
{[%clk 0:02:51.6]} 9. d5 {[%clk 0:01:56.8]} 9... Ngf6 {[%clk 0:02:50]} 10. g3
{[%clk 0:01:43.7]} 10... b4 {[%clk 0:02:46.4]} 11. axb4 {[%clk 0:01:38.7]} 11...
cxb4 {[%clk 0:02:47.3]} 12. Na4 {[%clk 0:01:18.4]} 12... Nxe4 {[%clk 0:02:38.8]}
13. Qxb4 {[%clk 0:01:03.1]} 13... Bxd5 {[%clk 0:02:38.9]} 14. Nb6 {[%clk
0:00:44.1]} 14... Nxb6 {[%clk 0:02:16.8]} 15. Bxb6 {[%clk 0:00:41.6]} 15... Qc8
{[%clk 0:02:17.3]} 16. Bb5+ {[%clk 0:00:09]} 16... axb5 {[%clk 0:02:08.9]} 17.
Qxb5+ {[%clk 0:00:09.3]} 17... Kf8 {[%clk 0:02:04.1]} 0-1

[Event "Late-Titled-Tuesday-Blitz-August-29-2023"]
[Site "Chess.com"]
[Date "2023.08.29"]
[Round "1"]
[White "OparinGrigoriy"]
[Black "szachmistrz2500"]
[Result "1-0"]
[WhiteElo "2974"]
[BlackElo "2501"]
[TimeControl "180+1"]
[EndTime "14:04:46 PDT"]
[Termination "OparinGrigoriy won by resignation"]

1. d4 {[%clk 0:03:00.2]} 1... Nf6 {[%clk 0:02:58.9]} 2. c4 {[%clk 0:03:00.7]}
2... g6 {[%clk 0:02:58.5]} 3. Nc3 {[%clk 0:03:01]} 3... Bg7 {[%clk 0:02:58.7]}
4. e4 {[%clk 0:03:01.1]} 4... d6 {[%clk 0:02:58.9]} 5. h3 {[%clk 0:02:58.4]}
5... O-O {[%clk 0:02:57.7]} 6. Bg5 {[%clk 0:02:58.7]} 6... Nbd7 {[%clk
0:02:55.2]} 7. Nf3 {[%clk 0:02:57]} 7... h6 {[%clk 0:02:54.6]} 8. Be3 {[%clk
0:02:56.6]} 8... e5 {[%clk 0:02:53.7]} 9. d5 {[%clk 0:02:55.6]} 9... Nc5 {[%clk
0:02:51.1]} 10. Nd2 {[%clk 0:02:52.9]} 10... a5 {[%clk 0:02:46.9]} 11. Be2
{[%clk 0:02:52.3]} 11... Ne8 {[%clk 0:02:44.6]} 12. Qc2 {[%clk 0:02:44.3]} 12...
f5 {[%clk 0:02:41.9]} 13. f3 {[%clk 0:02:44.5]} 13... f4 {[%clk 0:02:33.9]} 14.
Bf2 {[%clk 0:02:44.4]} 14... Qg5 {[%clk 0:02:15.1]} 15. Rg1 {[%clk 0:02:38.4]}
15... Bd7 {[%clk 0:02:14.2]} 16. O-O-O {[%clk 0:02:37.9]} 16... Nf6 {[%clk
0:02:09.3]} 17. Nb5 {[%clk 0:02:35.3]} 17... Rfc8 {[%clk 0:01:59.9]} 18. Kb1
{[%clk 0:02:35.5]} 18... Nh5 {[%clk 0:01:59.4]} 19. Rc1 {[%clk 0:02:30]} 19...
Ng3 {[%clk 0:01:58.3]} 20. Bd1 {[%clk 0:02:30.6]} 20... h5 {[%clk 0:01:57.2]}
21. Ka1 {[%clk 0:02:26.5]} 21... h4 {[%clk 0:01:56]} 22. Nb1 {[%clk 0:02:27]}
22... Bf8 {[%clk 0:01:55.5]} 23. Qd2 {[%clk 0:02:27.1]} 23... Qf6 {[%clk
0:01:52.7]} 24. N1c3 {[%clk 0:02:25]} 24... c6 {[%clk 0:01:52.4]} 25. Na3 {[%clk
0:02:10.3]} 25... Be7 {[%clk 0:01:40.2]} 26. Bxc5 {[%clk 0:02:09.8]} 26... dxc5
{[%clk 0:01:39.4]} 27. Ba4 {[%clk 0:02:10.2]} 27... Rd8 {[%clk 0:01:30.3]} 28.
Rgd1 {[%clk 0:02:10.3]} 28... Be8 {[%clk 0:01:29.6]} 29. Qf2 {[%clk 0:02:10.5]}
29... b6 {[%clk 0:01:27.7]} 30. dxc6 {[%clk 0:02:07.6]} 30... Bxc6 {[%clk
0:01:27]} 31. Bxc6 {[%clk 0:02:07.3]} 31... Qxc6 {[%clk 0:01:26.2]} 32. Nd5
{[%clk 0:02:08]} 32... Kf7 {[%clk 0:01:22.1]} 33. Rd3 {[%clk 0:02:08.4]} 33...
Rd7 {[%clk 0:01:21.6]} 34. Rcd1 {[%clk 0:02:08.6]} 34... Rad8 {[%clk 0:01:21.7]}
35. Nb5 {[%clk 0:02:08.9]} 35... Bf8 {[%clk 0:01:12.9]} 36. a3 {[%clk
0:02:09.2]} 36... g5 {[%clk 0:01:11.9]} 37. R1d2 {[%clk 0:02:07.3]} 37... Nh5
{[%clk 0:01:09.9]} 38. Qe1 {[%clk 0:02:07.7]} 38... Ke6 {[%clk 0:01:08.6]} 39.
Qd1 {[%clk 0:02:07]} 39... Kf7 {[%clk 0:01:05.2]} 40. Nxf4 {[%clk 0:02:02.6]}
40... Rxd3 {[%clk 0:01:01.5]} 41. Nxd3 {[%clk 0:02:03.5]} 41... Bg7 {[%clk
0:00:51.9]} 42. Nxe5+ {[%clk 0:02:02.9]} 1-0

[Event "Late-Titled-Tuesday-Blitz-August-29-2023"]
[Site "Chess.com"]
[Date "2023.08.29"]
[Round "1"]
[White "NigelDwarf"]
[Black "PNEPaul"]
[Result "1-0"]
[WhiteElo "2522"]
[BlackElo "1883"]
[TimeControl "180+1"]
[EndTime "14:04:47 PDT"]
[Termination "NigelDwarf won by resignation"]

1. Nf3 {[%clk 0:02:56.9]} 1... a6 {[%clk 0:02:59.1]} 2. e4 {[%clk 0:02:53.7]}
2... d6 {[%clk 0:02:59.3]} 3. d4 {[%clk 0:02:53.9]} 3... g6 {[%clk 0:02:59.3]}
4. c4 {[%clk 0:02:52.7]} 4... Bg7 {[%clk 0:02:59.2]} 5. Nc3 {[%clk 0:02:53.4]}
5... Nd7 {[%clk 0:02:59.1]} 6. Be3 {[%clk 0:02:53.2]} 6... h6 {[%clk 0:02:59.2]}
7. Be2 {[%clk 0:02:51.9]} 7... e5 {[%clk 0:02:59.3]} 8. d5 {[%clk 0:02:50.9]}
8... Ne7 {[%clk 0:02:59.4]} 9. g4 {[%clk 0:02:49.4]} 9... O-O {[%clk 0:02:58.4]}
10. Rg1 {[%clk 0:02:42.5]} 10... Nf6 {[%clk 0:02:50.2]} 11. Nd2 {[%clk 0:02:39]}
11... g5 {[%clk 0:02:49.4]} 12. f3 {[%clk 0:02:36.2]} 12... Ng6 {[%clk
0:02:49.1]} 13. b4 {[%clk 0:02:33.6]} 13... Nf4 {[%clk 0:02:48.9]} 14. c5 {[%clk
0:02:32.9]} 14... Nxe2 {[%clk 0:02:38.5]} 15. Kxe2 {[%clk 0:02:33.8]} 15... Bd7
{[%clk 0:02:32.2]} 16. Qb3 {[%clk 0:02:23.9]} 16... Qc8 {[%clk 0:02:30.6]} 17.
Rac1 {[%clk 0:02:14.8]} 17... Nxg4 {[%clk 0:02:29.6]} 18. fxg4 {[%clk
0:02:12.7]} 18... Bxg4+ {[%clk 0:02:29.4]} 19. Kd3 {[%clk 0:02:12.3]} 19... f5
{[%clk 0:02:27.3]} 20. cxd6 {[%clk 0:02:10.9]} 20... fxe4+ {[%clk 0:02:25.7]}
21. Ncxe4 {[%clk 0:02:10.4]} 21... Kh7 {[%clk 0:02:02.4]} 22. Rxc7 {[%clk
0:02:06.6]} 22... Qf5 {[%clk 0:02:00.1]} 23. Rf1 {[%clk 0:01:58]} 23... Qg6
{[%clk 0:02:00]} 24. Rxf8 {[%clk 0:01:51.6]} 24... Rxf8 {[%clk 0:01:59.4]} 25.
d7 {[%clk 0:01:47.1]} 25... Rd8 {[%clk 0:01:57.3]} 26. Rxb7 {[%clk 0:01:35.1]}
26... Bxd7 {[%clk 0:01:53.4]} 27. a4 {[%clk 0:01:32.3]} 27... Bf5 {[%clk
0:01:52.9]} 28. Qc4 {[%clk 0:01:28.6]} 28... Rc8 {[%clk 0:01:44.8]} 29. Rc7
{[%clk 0:01:24.2]} 29... Rd8 {[%clk 0:01:42.9]} 30. Kc3 {[%clk 0:01:09.6]} 1-0

[Event "Late-Titled-Tuesday-Blitz-August-29-2023"]
[Site "Chess.com"]
[Date "2023.08.29"]
[Round "1"]
[White "Mesa_1"]
[Black "ariosp"]
[Result "1-0"]
[WhiteElo "2563"]
[BlackElo "2235"]
[TimeControl "180+1"]
[EndTime "14:04:57 PDT"]
[Termination "Mesa_1 won by resignation"]

1. e4 {[%clk 0:03:00.3]} 1... e5 {[%clk 0:02:59.2]} 2. d4 {[%clk 0:03:00]} 2...
exd4 {[%clk 0:02:57.7]} 3. Qxd4 {[%clk 0:03:00.9]} 3... Nc6 {[%clk 0:02:56.6]}
4. Qc4 {[%clk 0:03:01.1]} 4... d6 {[%clk 0:02:53.2]} 5. Nc3 {[%clk 0:03:01.2]}
5... Nf6 {[%clk 0:02:52.1]} 6. Nf3 {[%clk 0:02:55]} 6... Be7 {[%clk 0:02:51.5]}
7. Bf4 {[%clk 0:02:54.3]} 7... O-O {[%clk 0:02:50.4]} 8. O-O-O {[%clk
0:02:54.9]} 8... Be6 {[%clk 0:02:45.2]} 9. Nd5 {[%clk 0:02:49.8]} 9... a6 {[%clk
0:02:35.4]} 10. h3 {[%clk 0:02:45.2]} 10... h6 {[%clk 0:02:33.2]} 11. g4 {[%clk
0:02:42.9]} 11... Re8 {[%clk 0:02:31.6]} 12. Rg1 {[%clk 0:02:42.6]} 12... g5
{[%clk 0:02:21.9]} 13. Be3 {[%clk 0:02:33.4]} 13... Bf8 {[%clk 0:02:19.8]} 14.
h4 {[%clk 0:02:25.6]} 14... Nxg4 {[%clk 0:02:01.1]} 15. hxg5 {[%clk 0:02:20.7]}
15... Nxe3 {[%clk 0:01:57.1]} 16. fxe3 {[%clk 0:02:20.7]} 16... Bxd5 {[%clk
0:01:52.6]} 17. exd5 {[%clk 0:02:18]} 17... Ne5 {[%clk 0:01:50.9]} 18. gxh6+
{[%clk 0:02:17]} 18... Kh8 {[%clk 0:01:49.6]} 19. Qf4 {[%clk 0:02:03.7]} 19...
Qe7 {[%clk 0:01:38.7]} 20. Nd4 {[%clk 0:01:47.9]} 20... Ng6 {[%clk 0:01:33.1]}
21. Rxg6 {[%clk 0:01:42.4]} 21... fxg6 {[%clk 0:01:31.3]} 22. Ne6 {[%clk
0:01:39.7]} 22... Kh7 {[%clk 0:01:23.2]} 23. Bd3 {[%clk 0:01:36.6]} 1-0

[Event "Late-Titled-Tuesday-Blitz-August-29-2023"]
[Site "Chess.com"]
[Date "2023.08.29"]
[Round "1"]
[White "BrandonJacobson"]
[Black "ErikRonka"]
[Result "1-0"]
[WhiteElo "3010"]
[BlackElo "2504"]
[TimeControl "180+1"]
[EndTime "14:05:09 PDT"]
[Termination "BrandonJacobson won by resignation"]

1. d4 {[%clk 0:03:00.1]} 1... d5 {[%clk 0:03:00.2]} 2. c4 {[%clk 0:03:00.2]}
2... e6 {[%clk 0:03:00.7]} 3. Nc3 {[%clk 0:02:59.9]} 3... Nf6 {[%clk 0:02:59.4]}
4. cxd5 {[%clk 0:02:59.6]} 4... Nxd5 {[%clk 0:03:00.3]} 5. e4 {[%clk 0:02:59.6]}
5... Nxc3 {[%clk 0:03:00.9]} 6. bxc3 {[%clk 0:03:00.5]} 6... c5 {[%clk
0:03:01.4]} 7. Rb1 {[%clk 0:03:01]} 7... Be7 {[%clk 0:03:00.2]} 8. Nf3 {[%clk
0:03:00.1]} 8... O-O {[%clk 0:02:58.3]} 9. Bd3 {[%clk 0:03:00.3]} 9... b6 {[%clk
0:02:50.8]} 10. h4 {[%clk 0:02:45.4]} 10... Bb7 {[%clk 0:02:46.7]} 11. h5 {[%clk
0:02:45.7]} 11... h6 {[%clk 0:02:45.9]} 12. Rh3 {[%clk 0:02:44.9]} 12... Kh8
{[%clk 0:02:33.2]} 13. Be3 {[%clk 0:02:34.8]} 13... Nd7 {[%clk 0:02:28.4]} 14.
e5 {[%clk 0:02:12.5]} 14... cxd4 {[%clk 0:01:47.9]} 15. cxd4 {[%clk 0:02:13.4]}
15... Rc8 {[%clk 0:01:48.1]} 16. Qd2 {[%clk 0:02:06.8]} 16... Bxf3 {[%clk
0:01:20.5]} 17. gxf3 {[%clk 0:02:05.4]} 17... Qc7 {[%clk 0:00:34.7]} 18. Rb3
{[%clk 0:01:57.5]} 18... a5 {[%clk 0:00:22.8]} 19. Bxh6 {[%clk 0:01:55.9]} 19...
Rg8 {[%clk 0:00:15.9]} 20. Rg3 {[%clk 0:01:39.9]} 20... a4 {[%clk 0:00:10.4]}
21. Bxg7+ {[%clk 0:01:39.6]} 1-0

[Event "Late-Titled-Tuesday-Blitz-August-29-2023"]
[Site "Chess.com"]
[Date "2023.08.29"]
[Round "1"]
[White "Valeron87"]
[Black "MarcoRiehle"]
[Result "0-1"]
[WhiteElo "2447"]
[BlackElo "2833"]
[TimeControl "180+1"]
[EndTime "14:05:15 PDT"]
[Termination "MarcoRiehle won by resignation"]

1. e4 {[%clk 0:03:00.9]} 1... e5 {[%clk 0:00:54.9]} 2. Nf3 {[%clk 0:03:01.3]}
2... Nf6 {[%clk 0:00:54.8]} 3. Nc3 {[%clk 0:03:00]} 3... Nc6 {[%clk 0:00:53.5]}
4. g3 {[%clk 0:03:00.4]} 4... Bc5 {[%clk 0:00:51.9]} 5. Bg2 {[%clk 0:03:00.8]}
5... d6 {[%clk 0:00:52.3]} 6. d3 {[%clk 0:02:59.1]} 6... Bg4 {[%clk 0:00:51.5]}
7. h3 {[%clk 0:02:59.3]} 7... Bh5 {[%clk 0:00:51.5]} 8. O-O {[%clk 0:02:58.5]}
8... Qd7 {[%clk 0:00:50.9]} 9. Na4 {[%clk 0:02:57.5]} 9... Bb6 {[%clk
0:00:50.7]} 10. c3 {[%clk 0:02:47.8]} 10... O-O {[%clk 0:00:49.4]} 11. Nxb6
{[%clk 0:02:47.4]} 11... axb6 {[%clk 0:00:49.1]} 12. Kh2 {[%clk 0:02:42.1]}
12... Rfe8 {[%clk 0:00:48.9]} 13. Bg5 {[%clk 0:02:41.5]} 13... Qe6 {[%clk
0:00:47.6]} 14. g4 {[%clk 0:02:35.7]} 14... Bg6 {[%clk 0:00:47.5]} 15. Nh4
{[%clk 0:02:36]} 15... Rxa2 {[%clk 0:00:43]} 16. Rxa2 {[%clk 0:02:33.4]} 16...
Qxa2 {[%clk 0:00:43.9]} 17. Bxf6 {[%clk 0:02:33.5]} 17... gxf6 {[%clk
0:00:44.5]} 18. Qd2 {[%clk 0:02:30.3]} 18... Kh8 {[%clk 0:00:37.5]} 19. f4
{[%clk 0:02:11.3]} 19... exf4 {[%clk 0:00:36.1]} 20. Qxf4 {[%clk 0:01:46.2]}
20... Qe6 {[%clk 0:00:35.4]} 21. Ra1 {[%clk 0:01:35.2]} 21... Qe5 {[%clk
0:00:34]} 22. Kg3 {[%clk 0:01:16.8]} 22... Kg7 {[%clk 0:00:33.7]} 23. Ra7 {[%clk
0:01:16]} 23... Nxa7 {[%clk 0:00:32.2]} 0-1